Cogmind - Beta 15 @@@ ROGUE MODE // 2025.07.04 @ 20:13:47 Player: Razrazz Result: Self-destructed Performance ------------- Evolutions (2) 1000 Regions Visited (5) 1000 Robots Destroyed (22) 110 Value Destroyed (479) 479 Prototype IDs (23) 460 Alien Tech Used (0) 0 Bonus (314) 314 TOTAL SCORE: 3363 Bonus ------- Follower Combat Kills 14 Aligned with FarCom 300 Cogmind --------- Core Integrity 419/550 Matter 63/300 Energy 100/100 System Corruption 0% Temperature Cool (0) Movement Rolling (115) Ox1 Location -8/Materials Parts ------- > --- POWER (1) -------- (None) > --- PROPULSION (3) --- Compact Wheel > --- UTILITY (5) ------ Scrap Suit Large Storage Unit Seismic Detector > --- WEAPON (2) ------- (None) > --- INVENTORY (15) --- Advanced Treads Improved Heat Sink Large Battery (200) Seismic Detector System Shield EM Pulse Cannon Assault Rifle Assault Cannon Peak State ------------ > --- POWER ------------ Light Nuclear Core > --- PROPULSION ------- Wheel Compact Wheel Compact Wheel > --- UTILITY ---------- Scrap Suit Large Storage Unit Seismic Detector Light Armor Plating > --- WEAPON ----------- Particle Cannon Rocket Launcher > --- INVENTORY -------- Light Ion Engine Advanced Treads Improved Heat Sink Large Battery Seismic Detector System Shield EM Pulse Cannon Assault Rifle Assault Cannon [Rating: 22] Favorites ----------- Power Light Ion Engine Engine Light Ion Engine Power Core Light Nuclear Core Propulsion Light Treads Treads Light Treads Wheel Wheel Utility Seismic Detector Device Seismic Detector Storage Medium Storage Unit Protection Light Armor Plating Weapon Medium Laser Energy Gun Medium Laser Energy Cannon Particle Cannon Ballistic Gun Assault Rifle Ballistic Cannon Assault Cannon Launcher Grenade Launcher Build | -11 -10 -10 -10 -9 -8 ------- Run | Yrd Mat Min Exi Min Mat Slots Evolved 4 | . . . . . 4 Power . | . . . . . . Propulsion 1 | . . . . . 1 Utility 3 | . . . . . 3 Weapon . | . . . . . . Parts Attached 30 | 7 2 2 1 9 9 Power 5 | 1 . 1 . 1 2 Engine 4 | 1 . 1 . 1 1 Core 1 | . . . . . 1 Reactor . | . . . . . . Propulsion 9 | 2 . 1 . 4 2 Treads 2 | 2 . . . . . Leg . | . . . . . . Wheel 7 | . . 1 . 4 2 Hover . | . . . . . . Flight . | . . . . . . Utility 9 | 2 1 . 1 2 3 Device 5 | 1 . . 1 1 2 Storage 3 | 1 1 . . . 1 Processor . | . . . . . . Hackware . | . . . . . . Protection 1 | . . . . 1 . Artifact . | . . . . . . Weapon 7 | 2 1 . . 2 2 Energy Gun 2 | 2 . . . . . Energy Cannon 1 | . . . . 1 . Ballistic Gun 1 | . . . . 1 . Ballistic Cannon 1 | . . . . . 1 Launcher 2 | . 1 . . . 1 Special Weapon . | . . . . . . Impact Weapon . | . . . . . . Slashing Weapon . | . . . . . . Piercing Weapon . | . . . . . . Special Melee Weapon . | . . . . . . Unidentified Prototypes . | . . . . . . Parts Lost 16 | . . 5 . 2 9 Power 5 | . . 2 . . 3 Propulsion 6 | . . 1 . 2 3 Utility 1 | . . . . . 1 Weapon 4 | . . 2 . . 2 Highest Loss Streak 7 | . . 5 . 2 7 To Critical Strikes . | . . . . . . Average Backups 5 | 1 4 6 5 3 7 Power . | . 1 . . . 1 Propulsion . | . 1 1 1 . . Utility 2 | . . 3 3 3 3 Weapon 1 | . 1 2 1 . 2 Tool/Special . | . . . . . . Unused Backups 6 | . . . . . 6 Power . | . . . . . . Propulsion 1 | . . . . . 1 Utility 4 | . . . . . 4 Weapon 1 | . . . . . 1 Tool/Special . | . . . . . . Average Slot Usage (%) 76 | . 99 98 . 77 77 Engine 9 | . 14 13 . 9 6 Treads 11 | . 27 27 . . . Wheel 8 | . . . . 21 18 Device 12 | . 14 14 . 13 15 Storage 8 | . 14 14 . . 8 Protection 4 | . . . . 11 8 Energy Gun 6 | . 16 13 . . . Energy Cannon 3 | . . . . 7 8 Ballistic Gun 2 | . . . . 13 2 Ballistic Cannon 1 | . . . . . 3 Launcher 6 | . 11 13 . . 3 Peak Build Rating 22 | 7 7 7 6 9 22 Average Rating 9 | 5 6 6 . 7 17 On Entrance 3 | . 7 7 . . 9 Naked Turns 271 | . . 5 265 1 . Heaviest Build 41 | 12 19 19 . 13 41 Greatest Support 42 | 40 40 40 3 26 42 Greatest Overweight (x) 3 | 2 . 3 . . 2 Average Overweight (x) . | . . . . . . Largest Inventory Capacity 15 | 8 10 10 5 5 15 Average Capacity 9 | 7 8 9 5 5 14 Most Carried 10 | 3 7 7 5 5 10 Average Carried 6 | 2 4 6 5 4 8 Final Capacity 15 | 8 10 5 5 5 15 Final Carried 8 | 3 7 5 5 5 8 Class Distribution -------------------- 92% | Mutant 7% | Scavenger-Mutant Dominant Class ---------------- Mutant | -10/Materials Mutant | -10/Mines Mutant | -10/Exiles Scavenger-Mutant | -9/Mines Mutant | -8/Materials Resources | -11 -10 -10 -10 -9 -8 ----------- Run | Yrd Mat Min Exi Min Mat Matter Collected 581 | 105 6 110 . 261 99 Remotely . | . . . . . . Salvage Created 578 | 98 6 50 . 216 208 Parts 38 | 12 . 7 . 10 9 Haulers Intercepted . | . . . . . . Recyclers Shooed 1 | . . . . 1 . Parts Field Recycled . | . . . . . . Retrieved Matter . | . . . . . . Parts Self-Destructed . | . . . . . . Prevented . | . . . . . . Kills | -11 -10 -10 -10 -9 -8 ------- Run | Yrd Mat Min Exi Min Mat Combat Hostiles Destroyed 16 | . . 9 . 2 5 Guns 1 | . . . . 1 . Cannons 5 | . . . . . 5 AOE 9 | . . 9 . . . Classes Destroyed 9 | 1 1 3 . 2 2 Worker 4 | . . 1 . 2 1 Tunneler 5 | 4 . . . 1 . Recycler 1 | . . . . 1 . Operator 1 | . . . . . 1 Watcher 1 | . 1 . . . . Swarmer 3 | . . 3 . . . Grunt 5 | . . . . 2 3 Sentry 2 | . . . . . 2 Assembled 6 | . . 6 . . . Best Kill Streak 4 | 4 1 4 . 1 2 Combat Bots Only 3 | . . 3 . 1 2 Max Kills in Single Turn 3 | 1 1 3 . 1 1 Gunslinging . | . . . . . . Exploded 3 | . . 3 . . . Melee . | . . . . . . Uniques/NPCs Destroyed . | . . . . . . Combat | -11 -10 -10 -10 -9 -8 -------- Run | Yrd Mat Min Exi Min Mat Hostile Shots Fired 114 | . . 48 . 16 50 Missed 30 | . . 10 . 4 16 Hits 84 | . . 38 . 12 34 Melee 6 | . . 6 . . . Projectile 78 | . . 32 . 12 34 AOE 2 | . . 2 . . . Critical Strikes 3 | . . . . . 3 Damage Taken 1891 | . 32 661 . 187 1011 Core 318 | . . 170 . 17 131 Absorbed by Shields . | . . . . . . Regen/Repaired (Parts) 10 | . . . . . 10 Core Remaining (%) 62 | 100 . . . 25 . Volleys Fired 64 | 4 2 6 . 24 28 Largest 2 | 2 2 2 . 2 2 Hottest 105 | 90 80 80 . 88 105 Shots Fired 97 | 8 4 10 . 34 41 Gun 38 | 8 2 6 . 22 . Cannon 37 | . . . . 12 25 Launcher 22 | . 2 4 . . 16 Special . | . . . . . . Kinetic 32 | . . . . 22 10 Thermal 43 | 8 2 6 . 12 15 Explosive 22 | . 2 4 . . 16 Electromagnetic . | . . . . . . Robot Hit Streak 9 | 3 . 6 . 9 7 Robot Miss Streak 2 | 1 . 2 . 2 2 Penetration Max . | . . . . . . Secondary Targets . | . . . . . . Shots Hit Robots 55 | 4 . 6 . 20 25 Core Hits 41 | 4 2 14 . 7 14 Critical Kills 1 | . . . . 1 . Critical Parts Destroyed . | . . . . . . Critical Strikes 2 | 1 . . . 1 . Burn 1 | 1 . . . . . Meltdown 1 | . . . . 1 . Melee Attacks . | . . . . . . Impact . | . . . . . . Slashing . | . . . . . . Piercing . | . . . . . . Sneak Attacks . | . . . . . . Combat Hostiles . | . . . . . . Follow-up Attacks . | . . . . . . Damage Inflicted 1812 | 49 109 611 . 316 727 Guns 284 | 49 13 51 . 171 . Cannons 530 | . . . . 145 385 Explosions 998 | . 96 560 . . 342 Melee . | . . . . . . Ramming . | . . . . . . Kinetic 288 | . . . . 171 117 Thermal 621 | 49 13 51 . 145 363 Explosive 903 | . 96 560 . . 247 Electromagnetic . | . . . . . . Impact . | . . . . . . Slashing . | . . . . . . Piercing . | . . . . . . Highest Corruption 5 | . . 5 5 5 . Average Corruption 5 | . . 5 5 5 . Corruption Purged . | . . . . . . Corruption Blocked . | . . . . . . Effects 15 | . . 1 6 8 . Message Errors 4 | . . . 1 3 . Matter Fused 5 | . . . 3 2 . Heat Flow Errors 1 | . . . . 1 . Energy Discharges 1 | . . . 1 . . Parts Rejected 1 | . . 1 . . . Data Loss (minor) 1 | . . . 1 . . Weapon Failures 2 | . . . . 2 . Overload Shots . | . . . . . . Overflow Damage 41 | . . 17 . . 24 Projectiles . | . . . . . . Explosions 41 | . . 17 . . 24 Melee . | . . . . . . Knockbacks 2 | . . . . . 2 Impact . | . . . . . . Kinetic 2 | . . . . . 2 Secondary . | . . . . . . Self-Inflicted Damage 205 | . 32 34 . . 139 Shots 6 | . 1 1 . . 4 Rammed . | . . . . . . Targets Rammed . | . . . . . . Kicked . | . . . . . . Crushed . | . . . . . . Highest Temperature 310 | 90 18 38 . 225 310 Average Temperature 79 | 40 12 18 . 80 109 Received Heat Transfer 308 | . . 20 . 108 180 Effects 2 | . . . . . 2 Interference 2 | . . . . . 2 Siege Activations . | . . . . . . Martial Activations . | . . . . . . Shielding Activations . | . . . . . . Robots Disrupted . | . . . . . . Combat Hostiles . | . . . . . . Robots Corrupted . | . . . . . . Combat Hostiles . | . . . . . . Parts Fried . | . . . . . . Impact Corruptions . | . . . . . . Robots Melted 1 | . . . . 1 . Combat Hostiles 1 | . . . . 1 . Parts Melted 1 | . . . . 1 . Heat Transferred 1185 | 210 37 148 . 259 531 Parts Sabotaged . | . . . . . . Parts Stolen . | . . . . . . Parts Stripped . | . . . . . . Power Chain Reactions . | . . . . . . Alert | -11 -10 -10 -10 -9 -8 ------- Run | Yrd Mat Min Exi Min Mat Maximum Alert Level . | . . . . . . Low Security (%) 100 | 100 100 100 . 100 100 Level 1 . | . . . . . . Level 2 . | . . . . . . Level 3 . | . . . . . . Level 4 . | . . . . . . Level 5 . | . . . . . . High Security . | . . . . . . Max Security . | . . . . . . Peak Influence 185 | 15 17 92 . 30 185 Initial 6 | . 6 . . . . Average 34 | 2 2 16 . 5 84 Influence Increases 761 | 20 36 166 . 70 469 Destroy 0b10 Robot/C 240 | . . 100 . 40 100 Destroy 0b10 Robot/NC 60 | 20 5 5 . 20 10 Destroy Leader 42 | . 2 10 . 10 20 Allied During Kill 6 | . . 6 . . . Successful Hack 19 | . 12 . . . 7 Disable Machine 90 | . . 15 . . 75 Destroy Structure 139 | . 17 30 . . 92 Lose Combat Pursuer 165 | . . . . . 165 Influence Decreases 615 | 10 46 166 . 70 323 Entered New Map 4 | . 4 . . . . Time Decay 445 | 10 42 100 . 60 233 Lost Part 120 | . . 20 . 10 90 Lost Ally 46 | . . 46 . . . Squads Dispatched 2 | . . . . . 2 Investigation . | . . . . . . Extermination . | . . . . . . Reinforcement 2 | . . . . . 2 Assault . | . . . . . . Garrison . | . . . . . . Intercept . | . . . . . . Searches Triggered . | . . . . . . Construction Impeded . | . . . . . . Haulers Reinforced . | . . . . . . Active Scanning Responses . | . . . . . . Cargo Convoy Interrupts . | . . . . . . Stealth | -11 -10 -10 -10 -9 -8 --------- Run | Yrd Mat Min Exi Min Mat Distress Signals 3 | . . . . . 3 Communications Jammed . | . . . . . . Distress Signals . | . . . . . . Times Spotted 49 | . 2 28 . 2 17 Peak Tracking Total 12 | . 1 12 . 2 5 Tactical Retreats 7 | . . 1 . . 6 Traps | -11 -10 -10 -10 -9 -8 ------- Run | Yrd Mat Min Exi Min Mat Traps Triggered 1 | . 1 . . . . Indirectly . | . . . . . . Trap Hack Attempts . | . . . . . . Triggered . | . . . . . . Disarmed . | . . . . . . Reprogrammed . | . . . . . . Reused . | . . . . . . Traps Extracted . | . . . . . . Installed . | . . . . . . Triggered . | . . . . . . Machines | -11 -10 -10 -10 -9 -8 ---------- Run | Yrd Mat Min Exi Min Mat Machines Disabled 6 | . . 1 . . 5 Max in Single Turn 1 | . . 1 . . 1 Machines Repaired . | . . . . . . Machines Dismantled . | . . . . . . Machines Sabotaged . | . . . . . . Overloaded Fab Kills . | . . . . . . Hacking | -11 -10 -10 -10 -9 -8 --------- Run | Yrd Mat Min Exi Min Mat Machines Accessed 6 | . 3 . 1 . 2 Terminals 4 | . 2 . . . 2 Fabricators . | . . . . . . Repair Stations . | . . . . . . Recycling Units 1 | . 1 . . . . Scanalyzers . | . . . . . . Garrison Access . | . . . . . . Total Hacks 14 | . 7 . 1 . 6 Successful 11 | . 7 . 1 . 3 Failed 3 | . . . . . 3 Catastrophic . | . . . . . . Database Lockouts . | . . . . . . Manual 13 | . 7 . 1 . 5 Terminals 11 | . 5 . . . 6 Fabricators . | . . . . . . Repair Stations . | . . . . . . Recycling Units 2 | . 2 . . . . Scanalyzers . | . . . . . . Garrison Access . | . . . . . . Terminal Hacks 6 | . 3 . 1 . 2 Robot Analysis 1 | . 1 . . . . Branch Access Points 1 | . 1 . . . . Dispatch Records 1 | . . . . . 1 Security Status 1 | . 1 . . . . Patrol Status 1 | . . . . . 1 Proto ID Catalog 1 | . . . 1 . . Fabricator Hacks . | . . . . . . Repair Station Hacks . | . . . . . . Recycling Unit Hacks . | . . . . . . Scanalyzer . | . . . . . . Garrison Access Hacks . | . . . . . . Unauthorized Hacks 5 | . 4 . . . 1 Terminals 3 | . 2 . . . 1 Botnet 3 | . 2 . . . 1 Fabricators . | . . . . . . Repair Stations . | . . . . . . Recycling Units 2 | . 2 . . . . Recyclers 1 | . 1 . . . . Mask 1 | . 1 . . . . Scanalyzers . | . . . . . . Garrison Access . | . . . . . . Data Cores Recovered . | . . . . . . Used . | . . . . . . Hacking Detections 5 | . 3 . . . 2 Full Trace Events . | . . . . . . Feedback Events . | . . . . . . Feedback Blocked . | . . . . . . Robot Schematics Acquired . | . . . . . . Robots Built . | . . . . . . Authchips . | . . . . . . Time . | . . . . . . Total Robot Build Rating . | . . . . . . Part Schematics Acquired . | . . . . . . Parts Built . | . . . . . . Authchips . | . . . . . . Time . | . . . . . . Total Part Build Rating . | . . . . . . Parts Repaired . | . . . . . . Time . | . . . . . . Parts Recycled . | . . . . . . Recycled Matter . | . . . . . . Retrieved Matter . | . . . . . . Retrieved Components . | . . . . . . Parts Scanalyzed . | . . . . . . Part Schematics Acquired . | . . . . . . Parts Damaged . | . . . . . . Bothacking | -11 -10 -10 -10 -9 -8 ------------ Run | Yrd Mat Min Exi Min Mat Used RIF Installer . | . . . . . . Robots Hacked . | . . . . . . Non-combat . | . . . . . . Combat . | . . . . . . Robot Hacks Applied . | . . . . . . Relay Couplers Released . | . . . . . . Fabnet Peak Effective % . | . . . . . . Robots Rewired . | . . . . . . Allies Hacked . | . . . . . . Hacks Repelled . | . . . . . . Allies | -11 -10 -10 -10 -9 -8 -------- Run | Yrd Mat Min Exi Min Mat Total Allies 3 | . . 3 . . . Largest Group 3 | . . 3 . . . Highest-Rated Group 40 | . . 40 . . . Highest-Rated Ally 16 | . . 16 . . . Total Orders . | . . . . . . Ally Attacks 16 | . . 16 . . . Total Damage 111 | . . 111 . . . Kills 2 | . . 2 . . . Allies Corrupted . | . . . . . . Allies Melted . | . . . . . . Intel | -11 -10 -10 -10 -9 -8 ------- Run | Yrd Mat Min Exi Min Mat Active Infowar (turns) 1834 | 2 307 591 . 303 631 Seismic 1834 | 2 307 591 . 303 631 Robot Analysis Total 1 | . 1 . . . . Derelict Logs Recovered 4 | . . 2 . 2 . Drone Launches . | . . . . . . Drone Recoveries . | . . . . . . Exploration | -11 -10 -10 -10 -9 -8 ------------- Run | Yrd Mat Min Exi Min Mat Turns Passed 2187 | 74 307 596 266 313 631 Spaces Moved 1831 | 32 169 367 527 261 475 Core 550 | 5 . 13 527 5 . Treads 544 | 27 169 348 . . . Legs . | . . . . . . Wheels 737 | . . 6 . 256 475 Hover . | . . . . . . Flight . | . . . . . . Fastest Speed 50 | 50 160 50 50 50 90 Average Speed 101 | 153 160 155 50 84 103 Slowest Speed 200 | 160 160 200 50 100 130 Overloaded Moves . | . . . . . . Propulsion Burnouts . | . . . . . . Robots Hopped . | . . . . . . Potential Cave-ins . | . . . . . . Cave-ins Triggered . | . . . . . . Exploration Rate (%) 47 | 3 31 69 90 54 37 Regions Visited 5 Branch Regions 3 Pre-discovered Areas 2 | . . 1 . 1 . Known Exits Taken 1 | . 1 . . . . Unknown Exits Taken 4 | 1 . 1 1 1 . Scrap Searched 2 | . . 1 . 1 . Spaces Dug 67 | . 8 10 . . 49 Terrain Destroyed 171 | . 14 31 . . 126 Melee . | . . . . . . Projectile 1 | . . . . . 1 AOE 170 | . 14 31 . . 125 Terrain Rammed . | . . . . . . Walls Destroyed . | . . . . . . Machines Disabled . | . . . . . . Actions | -11 -10 -10 -10 -9 -8 --------- Run | Yrd Mat Min Exi Min Mat Total 2043 | 45 200 381 530 314 573 Wait 100 | . 24 7 . 17 52 Move 1826 | 31 168 366 526 260 475 Hop . | . . . . . . Pick Up 18 | 3 3 . 1 3 8 Fast Attach 18 | 7 1 . 1 6 3 Attach 8 | . . 1 . 3 4 Detach . | . . . . . . Swap 5 | . 2 1 . . 2 Drop 4 | . . . 2 1 1 Fire 64 | 4 2 6 . 24 28 Melee . | . . . . . . Ram . | . . . . . . Kick . | . . . . . . Crush . | . . . . . . Escape Stasis . | . . . . . . Rewire . | . . . . . . Trap . | . . . . . . Miscellaneous . | . . . . . . Route ------- -11/Scrapyard -10/Materials (discovered 2 exits: *Min x2) -10/Mines (discovered 2 exits: [*Mat] / *Exi) -10/Exiles (discovered 2 exits: [*Min x2]) -9/Mines -8/Materials History --------- Turn | Location | Event 22 | -11/Scrapyard | Discovered new exit (range 16) 75 | -11/Scrapyard | Entered Materials 219 | -10/Materials | Discovered new exit (range 11) 304 | -10/Materials | Build established: Mutant 320 | -10/Materials | Identified exit to Mines 382 | -10/Materials | Entered Mines 497 | -10/Mines | Learned Materials garrison access intel 692 | -10/Mines | Discovered new exit (range 5) 705 | -10/Mines | Assisted by bots powering up and referring to "LRC-V3" 909 | -10/Mines | Assembled infested the area 962 | -10/Mines | Core integrity fell below 50% 973 | -10/Mines | Released all parts (2) 976 | -10/Mines | Deemed a non-threat by the Exiles lab entrance 976 | -10/Mines | Discovered new exit (range 5) 978 | -10/Mines | Entered Exiles 985 | -10/Exiles | Lost 3 allies 990 | -10/Exiles | Met 8R-AWN 998 | -10/Exiles | Lost 5 parts (2p1n2w) 999 | -10/Exiles | Met EX-HEX 1018 | -10/Exiles | Met EX-DEC 1050 | -10/Exiles | Discovered new exit (range 15) 1090 | -10/Exiles | Visited The Gauntlet 1150 | -10/Exiles | Met EX-BIN 1157 | -10/Exiles | Aligned with FarCom system 1158 | -10/Exiles | Given EX-Vault access code 1169 | -10/Exiles | Opened EX-Vault 1173 | -10/Exiles | Found Skeleton Box 1184 | -10/Exiles | Warned to stay clear of 0b10 Research branches 1238 | -10/Exiles | Discovered new exit (range 14) 1244 | -10/Exiles | Entered Mines 1276 | -9/Mines | Found a Scrap Suit stashed away for nefarious purposes 1280 | -9/Mines | Found Scrap Suit 1378 | -9/Mines | Learned location of Zion (-7) 1385 | -9/Mines | Learned Materials stockpile data 1492 | -9/Mines | Discovered new exit (range 12) 1557 | -9/Mines | Entered Materials 1557 | -8/Materials | Evolved 4 slots: Propulsion x1, Utility x3 1559 | -8/Materials | Loaded intel: 1 garrison access location 2188 | -8/Materials | Self-destructed Last Messages --------------- 02166_ K-01 Serf collects debris. 02167_ U-05 Engineer builds a Wall. 02167_ Penetrated by Slug. 02167_ Com. Wheel destroyed. 02167_ Knocked back. 02167_ U-05 Engineer lays Concrete. 02168_ Acquired 8 matter. 02169_ U-05 Engineer lays Concrete. 02169_ K-01 Serf collects debris. 02170_ U-05 Engineer lays Concrete. 02171_ U-05 Engineer builds a Wall. 02171_ Penetrated by Slug. 02172_ Acquired 7 matter. 02172_ U-05 Engineer lays Concrete. 02185_ Slug penetrates Wall. 02185_ Lgt. Ion Engine destroyed. 02185_ Knocked back. 02186_ Acquired 5 matter. 02188_ Rocket Launcher destroyed. 02188_ Critical hit (Blast). Map ----- +----------------------------------------------------+ | #############+#############+### #??# ## ? | | #??# ##+###+## | | " #??# % | | #??# % | | ######+####### ############# #??# % | | ???# #??# #?????######## ##??# " % " | | ???# #??# #?????# # #???# """ "" | | ???#" """ #??# #?????# # #???# """ """ | | ???#T """ #### ####### / ##### % | | ???#" """ + + # w | | ???# ########## #### # | | ???########????????# #??# # | | ???????????????????# ###################### # | | ?!?????????????????# #? #?????????# # | | ???????????????????# #? ######????#! !# | | ???????????????????# #?? ## # ###??##!!!!## | | ???????????????????# #????? # ###?######? | | ????????????######## ##########+# "#???????? | | ????????# # "##??????? | | ????????????########## # " #??????? | | ?????????????????????# # " #??????? | | ?????????????????????# # " #??????? | | ?????????????????????# + " #??????? | | ?????????????????????#k % # " #??????? | | ?????????????????????# # "##??????? | | ?????????????????????## @####### * #???????? | | ??????????x???????????# #????## #???????? | | ??????????????????????# #?????#! #???????? | | ??????????????????????# #?????###### ###???????? | | ????????????########?## ##???????# #????????? | | ????????x???#] #?# #???????### #????????? | | ????????????# ### #######???####????????? | | ?????????Y"?# + ^ #???????????????? | | ?????????"" # ### ##### #???????????????? | | ?????????? [ #?# #???# #???????????????? | | ????????????# ###;# ###???# #???????????????? | | ???????###### ##%#;# #?????# #???????????????? | | ????? g #?????# #???????????????? | | ????? ! #???### ###?????######??? | | ????? =H##+##### ] #?????# #??? | | ?????? ##### $ # ## ####### #??? | | ??????????# ## " ## T + #??? | | ?????????# # + ####### #??? | | ?????????## # ## #????## ##?? | | ??????????# ############???### ##?? | | ??????????###### #??????????????# #?? | | ??????????????? ??????????????# ##?? | | ?????????????? ??????????????# #?? | | ????????????? ????????????# #?? | | ????????????? ????????????## # ##?? | +----------------------------------------------------+ Best States ------------- Heat Dissipation 31 Energy Generation 14 Energy Capacity 160 Matter Stores 254 Matter Capacity 300 Sight Range 16 Terrain Scan Density 10 Armor Coverage 150 Evasion (%) 50 Recoil Reduction 2 Item Schematics ----------------- None Robot Schematics ------------------ None Fabricated ------------ Nothing Repaired ---------- Nothing Alien Tech Used ----------------- None Achievements -------------- It's Just You Challenges ------------ None Game ------ Seed BladeShieldRifle Manual? 0 Play Time 00:57:52 Cumulative 10.6 hours Start 2025.07.03 @ 23:55:19 End 2025.07.04 @ 20:13:47 Sessions 5 Manual Loads 0 Difficulty Rogue Special Mode None Game No. 28 Rogue 28 Adventurer 0 Explorer 0 Win Type - Total 0 Types 0/0/0/0/0/0/0/0/0/0 Lore% 13 Gallery% 11 Achievement% 19 Wizard Run 0 Options --------- Layout 1 ASCII 0 Keyboard 0 Movement Numpad Keybinds 0 Fullscreen 1 Font 32/SmallcapsGlow Map View 50x35 Zoom Use 0% Tactical HUD 1 Map Filters NONE Filters NONE Steam 1 RUN: a4fe18ea-2d1b-4cfc-8589-514a208d6368